bitfinex-derivatives/quotes_BTCF0:USTF0_20250722
["timestamp","ask_amount","ask_price","bid_price","bid_amount"]
[1753160481703,0.4635726,116800.0,116790.0,1.79370853]
[1753160481911,0.18715,116800.0,116790.0,2.06671853]
[1753160482211,0.3582927,116800.0,116790.0,1.72635639]
[1753160482408,0.3582927,116800.0,116790.0,2.13105159]
[1753160482409,0.3681827,116800.0,116790.0,2.13105159]
[1753160482606,0.4320627,116800.0,116790.0,2.13105159]
[1753160482808,0.4320627,116800.0,116790.0,1.79068945]
[1753160483013,0.4320627,116800.0,116790.0,2.13105159]
[1753160483807,0.4635727,116800.0,116790.0,2.11914159]
[1753160484107,0.4635727,116800.0,116790.0,1.43598159]
[1753160484408,0.3681827,116800.0,116790.0,2.16207159]
[1753160484612,0.3681827,116800.0,116790.0,2.16179159]
[1753160484914,0.3681827,116800.0,116790.0,1.44091159]
[1753160485101,0.3681827,116800.0,116790.0,1.16091159]
[1753160485305,0.3681827,116800.0,116790.0,1.88135159]
[1753160485503,0.16874,116800.0,116790.0,1.42091159]
[1753160485813,0.16874,116800.0,116790.0,2.14099159]
[1753160485814,0.10507,116800.0,116790.0,2.14099159]
[1753160486802,0.2605127,116800.0,116790.0,2.14099159]
[1753160487011,0.13811,116800.0,116790.0,2.14099159]
[1753160487712,0.08937,116800.0,116790.0,2.14099159]
[1753160488113,0.13811,116800.0,116790.0,2.14099159]
[1753160488509,0.08937,116800.0,116790.0,2.14099159]
[1753160489509,0.28573,116820.0,116810.0,0.1711281]
[1753160489711,0.7499335,116820.0,116810.0,0.9318381]
[1753160489917,0.3132935,116820.0,116810.0,1.69455024]
[1753160490116,0.18103,116820.0,116810.0,1.69455024]
[1753160490416,0.18103,116820.0,116810.0,2.13852524]
[1753160490717,0.18203,116820.0,116810.0,2.13852524]
[1753160490905,0.3531435,116820.0,116810.0,2.13852524]
[1753160491105,0.18203,116820.0,116810.0,2.13852524]
[1753160491309,0.18403,116820.0,116810.0,2.13852524]
[1753160491510,0.3551434,116820.0,116810.0,1.7981631]
[1753160491712,0.3551434,116820.0,116810.0,2.13852524]
[1753160491913,0.3551434,116820.0,116810.0,2.13952524]
[1753160492113,0.3650334,116820.0,116810.0,1.90821324]
[1753160492314,0.19392,116820.0,116810.0,1.90821324]
[1753160492515,0.18403,116820.0,116810.0,1.90821324]
[1753160492709,0.080055,116820.0,116810.0,1.80423824]
[1753160492917,0.17174,116820.0,116810.0,2.09264824]
[1753160493118,0.123,116820.0,116810.0,2.09264824]
[1753160493316,0.17174,116820.0,116810.0,2.09264824]
[1753160493713,0.3428535,116820.0,116810.0,2.09008824]
[1753160493909,0.3527435,116820.0,116810.0,1.72008824]
[1753160494113,0.3527435,116820.0,116810.0,1.00420824]
[1753160494314,0.3527435,116820.0,116810.0,1.71980824]
[1753160494711,0.4350335,116820.0,116810.0,1.71980824]
[1753160495321,0.26392,116820.0,116810.0,1.71980824]
[1753160495517,0.17174,116820.0,116810.0,2.07980824]
[1753160496019,0.17174,116820.0,116810.0,2.12585779]
[1753160496617,0.15604,116820.0,116810.0,2.12585779]
[1753160497321,0.3271535,116820.0,116810.0,2.12585779]
[1753160497512,0.02099,116820.0,116810.0,2.12585779]
[1753160497713,0.3238615,116840.0,116830.0,0.2425788]
[1753160497714,0.3264765,116840.0,116830.0,0.2425788]
[1753160498017,0.5406165,116840.0,116830.0,0.80071494]
[1753160498315,0.3878588,116830.0,116820.0,0.04604494]
[1753160498520,0.3878588,116830.0,116820.0,0.75936494]
[1753160498521,1.20902094,116830.0,116820.0,0.75936494]
[1753160498721,0.2568435,116820.0,116810.0,0.23557172]
[1753160498916,0.5078735,116820.0,116810.0,1.29889172]
[1753160499122,0.5078735,116820.0,116810.0,1.01116172]
[1753160499417,0.5078735,116820.0,116810.0,1.38929091]
[1753160499812,0.5078735,116820.0,116810.0,1.38073386]
[1753160500220,0.5078735,116820.0,116810.0,1.74153386]
[1753160500724,0.5078735,116820.0,116810.0,1.40117172]
[1753160500924,0.5078735,116820.0,116810.0,1.74153386]
[1753160501421,0.5078735,116820.0,116810.0,1.40117172]
[1753160501622,0.5078735,116820.0,116810.0,0.84003722]
[1753160501821,0.5078735,116820.0,116810.0,1.01116532]
[1753160502011,0.5078735,116820.0,116810.0,0.12671722]
[1753160502216,1.20903564,116820.0,116810.0,0.04704494]
[1753160502416,1.20903564,116820.0,116810.0,0.75796494]
[1753160502622,1.20903564,116820.0,116810.0,0.71192]
[1753160504125,1.22679845,116820.0,116810.0,0.71192]
[1753160504326,0.88643631,116820.0,116810.0,0.8830481]
[1753160504623,0.8686735,116820.0,116810.0,0.71172]
[1753160504824,0.88643636,116820.0,116810.0,0.71172]
[1753160505030,1.2267985,116820.0,116810.0,0.8828481]
[1753160505329,0.88643636,116820.0,116810.0,0.8828481]
[1753160505522,0.88643636,116820.0,116810.0,0.71172]
[1753160506422,0.88643636,116820.0,116810.0,0.8828482]
[1753160507625,0.4635435,116820.0,116810.0,1.66191034]
[1753160507928,0.4623835,116820.0,116810.0,0.9588682]
[1753160508124,0.5085335,116820.0,116810.0,1.26568034]
[1753160508323,0.52629215,116820.0,116810.0,1.26568034]
[1753160508524,0.52629215,116820.0,116810.0,1.29923034]
[1753160508725,0.5085335,116820.0,116810.0,1.29923034]
[1753160508931,0.5085335,116820.0,116810.0,1.66003034]
[1753160509329,0.5085335,116820.0,116810.0,1.29923034]
[1753160509522,0.5085335,116820.0,116810.0,1.66003034]
[1753160509723,0.5085335,116820.0,116810.0,1.3196682]
[1753160509923,0.4623835,116820.0,116810.0,1.70737528]
[1753160510124,0.4319535,116820.0,116810.0,1.34657528]
[1753160510331,0.4319535,116820.0,116810.0,1.70737528]
[1753160511020,0.4221435,116820.0,116810.0,1.70737528]
[1753160511530,0.12,116820.0,116810.0,2.05737528]
[1753160511925,0.12,116820.0,116810.0,2.01133034]
[1753160512132,0.12,116820.0,116810.0,2.05747875]
[1753160513731,0.2911135,116820.0,116810.0,2.05747875]
[1753160513932,0.12,116820.0,116810.0,2.05747875]
[1753160514227,0.12,116820.0,116810.0,2.01133034]
[1753160514432,0.2911135,116820.0,116810.0,2.01133034]
[1753160515033,0.2911135,116820.0,116810.0,1.66133034]
[1753160515332,0.2911135,116820.0,116810.0,2.03133034]
[1753160516128,0.3390035,116820.0,116810.0,1.99133034]
[1753160516532,0.4061135,116820.0,116810.0,1.99133034]
[1753160516730,0.5117135,116820.0,116810.0,0.4397]
[1753160516929,0.5117135,116820.0,116810.0,0.001]
[1753160516930,1.38408364,116820.0,116810.0,0.001]
[1753160517127,0.3622957,116810.0,116800.0,0.02526398]
[1753160517330,1.23624284,116810.0,116800.0,0.02526398]
[1753160517526,1.65746684,116810.0,116800.0,0.02526398]
[1753160517727,1.4321047,116810.0,116800.0,0.02526398]
[1753160517928,0.2575474,116790.0,116780.0,1.38077537]
[1753160518135,0.5117574,116790.0,116780.0,1.04260257]
[1753160518633,0.5117574,116790.0,116780.0,1.12530257]
[1753160518828,0.5117574,116790.0,116780.0,1.0637641]
[1753160519332,0.5117574,116790.0,116780.0,1.0209713]
[1753160519734,0.5117574,116790.0,116780.0,1.09787142]
[1753160520122,0.5117574,116790.0,116780.0,1.43823356]
[1753160520333,0.3582674,116790.0,116780.0,1.47097356]
[1753160520530,0.12,116790.0,116780.0,1.83177356]
[1753160520732,0.12,116790.0,116780.0,2.06487344]
[1753160521233,0.12,116790.0,116780.0,2.14177356]
[1753160521433,0.12,116790.0,116780.0,1.80141142]
[1753160521629,0.1043,116790.0,116780.0,1.13097356]
[1753160521939,0.2193,116790.0,116780.0,1.85014191]
[1753160522238,0.17141,116790.0,116780.0,2.19090197]
[1753160522434,0.1043,116790.0,116780.0,2.19090197]
[1753160522636,0.1043,116790.0,116780.0,2.08324179]
[1753160522829,0.0886,116790.0,116780.0,1.37784179]
[1753160523035,0.0886,116790.0,116780.0,2.08356179]
[1753160523239,0.32402,116810.0,116800.0,0.3255827]
[1753160523438,0.21402,116810.0,116800.0,1.79399272]
[1753160523834,0.20421,116810.0,116800.0,1.79505272]
[1753160524028,0.20421,116810.0,116800.0,1.73352484]
[1753160524234,0.07,116810.0,116800.0,2.11352484]
[1753160524438,0.07,116810.0,116800.0,1.3931627]
[1753160524638,0.07,116810.0,116800.0,2.1404347]
[1753160524838,0.13711,116810.0,116800.0,2.1404347]
[1753160525542,0.13711,116810.0,116800.0,2.1414347]
[1753160526240,0.13711,116810.0,116800.0,2.42532484]
[1753160526441,0.12141,116810.0,116800.0,2.42632484]
[1753160526843,0.12141,116810.0,116800.0,2.5032347]
[1753160527336,0.12141,116810.0,116800.0,2.57474096]
[1753160527537,0.12141,116810.0,116800.0,2.04552484]
[1753160527842,0.3596381,116810.0,116800.0,2.04552484]
[1753160528043,0.18851,116810.0,116800.0,2.04552484]
[1753160528643,0.3596381,116810.0,116800.0,2.04552484]
[1753160529143,0.19832,116810.0,116800.0,2.04552484]
[1753160529345,0.18851,116810.0,116800.0,2.11552484]
[1753160529742,0.3596381,116810.0,116800.0,2.11552484]
[1753160530142,0.14062,116810.0,116800.0,1.3951627]
[1753160530345,0.14062,116810.0,116800.0,2.09632484]
[1753160530546,0.3117481,116810.0,116800.0,2.42632484]
[1753160530845,0.3117481,116810.0,116800.0,2.39272484]
[1753160531045,0.0543,116810.0,116800.0,2.73272484]
[1753160531839,0.0543,116810.0,116800.0,2.7942311]
[1753160532146,0.0543,116810.0,116800.0,2.4978311]
[1753160532346,0.4451191,116830.0,116820.0,0.3266135]
[1753160532541,0.4451191,116830.0,116820.0,1.36593564]
[1753160532542,0.4351191,116830.0,116820.0,1.36593564]
[1753160533042,0.25421,116830.0,116820.0,1.36593564]
[1753160533252,0.18711,116830.0,116820.0,1.36593564]
[1753160533745,0.3784188,116830.0,116820.0,1.36593564]
[1753160533946,0.4263088,116830.0,116820.0,1.36593564]
[1753160534843,0.4263088,116830.0,116820.0,1.0255735]
[1753160535348,0.4363488,116830.0,116820.0,1.36593564]
[1753160535949,0.4363488,116830.0,116820.0,1.36487564]
[1753160536346,0.5152788,116830.0,116820.0,1.33213564]
[1753160536744,0.5152788,116830.0,116820.0,0.2928135]
[1753160536944,0.5152788,116830.0,116820.0,0.9884935]
[1753160537141,0.5152788,116830.0,116820.0,0.2928135]
[1753160537352,0.3943635,116820.0,116810.0,0.39997446]
[1753160537552,0.8751635,116820.0,116810.0,0.97084466]
[1753160537950,0.1711281,116810.0,116800.0,1.62356266]
[1753160538246,0.5143781,116810.0,116800.0,0.5494392]
[1753160538747,0.3745428,116800.0,116790.0,0.75652676]
[1753160538941,0.8751928,116800.0,116790.0,0.9430839]
[1753160539547,0.5143928,116800.0,116790.0,0.9430839]
[1753160539747,0.5143928,116800.0,116790.0,0.9901639]
[1753160539952,0.8751928,116800.0,116790.0,0.9901639]
[1753160540152,0.5143928,116800.0,116790.0,0.9901639]
[1753160540342,0.5143928,116800.0,116790.0,1.0383239]
[1753160540543,0.26404,116800.0,116790.0,1.77507604]
[1753160540744,0.12,116800.0,116790.0,2.13698604]
[1753160540945,0.12,116800.0,116790.0,2.13998604]
[1753160541147,0.11809,116800.0,116790.0,2.13998604]
[1753160541346,0.11809,116800.0,116790.0,2.2014923]
[1753160542150,0.02323284,116800.0,116790.0,2.2014923]
[1753160542450,0.134,116820.0,116810.0,0.1711278]
[1753160542650,0.264,116820.0,116810.0,1.2245678]
[1753160542855,0.4351132,116820.0,116810.0,1.56492994]
[1753160543056,0.4194132,116820.0,116810.0,1.56492994]
[1753160543251,0.4294532,116820.0,116810.0,1.58062994]
[1753160543556,0.4294532,116820.0,116810.0,1.5979167]
[1753160544257,0.2483,116820.0,116810.0,1.5979167]
[1753160544958,0.4194135,116820.0,116810.0,1.5979167]
[1753160545255,0.4294535,116820.0,116810.0,1.5979167]
[1753160545457,0.4137535,116820.0,116810.0,1.5979167]
[1753160545760,0.4929635,116820.0,116810.0,0.9369267]
[1753160546151,0.4929635,116820.0,116810.0,1.6277267]
[1753160547253,0.4929635,116820.0,116810.0,1.28736456]
[1753160547454,0.4929635,116820.0,116810.0,1.6277267]
[1753160547860,0.2326,116820.0,116810.0,1.6277267]
[1753160548054,0.13,116820.0,116810.0,2.00923296]
[1753160548359,0.13,116820.0,116810.0,1.9477267]
[1753160548555,0.13,116820.0,116810.0,2.00923296]
[1753160549259,0.19708,116820.0,116810.0,1.9477267]
[1753160550459,0.19708,116820.0,116810.0,2.00923296]
[1753160550848,0.19708,116820.0,116810.0,1.68923296]
[1753160551052,0.19708,116820.0,116810.0,2.06923296]
[1753160552264,0.19708,116820.0,116810.0,1.68923296]
[1753160552462,0.3681935,116820.0,116810.0,2.00923296]
[1753160553065,0.19708,116820.0,116810.0,2.00923296]
[1753160553859,0.3681935,116820.0,116810.0,0.83650516]
[1753160554055,0.3479628,116800.0,116790.0,0.12455626]
[1753160554261,1.21555494,116800.0,116790.0,0.06150626]
[1753160554462,0.3051721,116780.0,116770.0,0.10766018]
[1753160554657,0.7959721,116780.0,116770.0,0.76273014]
[1753160554859,1.13633424,116780.0,116770.0,0.07685014]
[1753160555058,1.13633424,116780.0,116770.0,0.76249014]
[1753160555460,1.13633424,116780.0,116770.0,0.68564]
[1753160555670,1.55760624,116780.0,116770.0,0.06148862]
[1753160555859,1.55760624,116780.0,116770.0,0.01604962]
[1753160556065,0.3051867,116770.0,116760.0,0.00199]
[1753160556260,1.11634884,116770.0,116760.0,0.00199]
[1753160556465,1.28763684,116770.0,116760.0,0.00199]
[1753160557672,0.7759867,116770.0,116760.0,0.00399]
[1753160557866,0.7759867,116770.0,116760.0,0.08084014]
[1753160558067,0.4151867,116770.0,116760.0,0.08084014]
[1753160558271,0.7759867,116770.0,116760.0,0.08084014]
[1753160558470,0.7759867,116770.0,116760.0,0.08284014]
[1753160558870,0.7759867,116770.0,116760.0,0.76628014]
[1753160559267,0.7759867,116770.0,116760.0,0.93748154]
[1753160559469,0.7759867,116770.0,116760.0,1.33027368]
[1753160559868,0.7759867,116770.0,116760.0,0.98991154]
[1753160560070,0.7759867,116770.0,116760.0,1.02072158]
[1753160560372,0.7759867,116770.0,116760.0,0.9130614]
[1753160560577,0.3953367,116770.0,116760.0,1.2738614]
[1753160560776,0.3953367,116770.0,116760.0,1.61422354]
[1753160561274,0.17708,116770.0,116760.0,1.63170943]
[1753160561471,0.11,116770.0,116760.0,1.63170943]
[1753160561669,0.11,116770.0,116760.0,1.73936961]
[1753160562171,0.11,116770.0,116760.0,1.39900747]
[1753160562373,0.2811867,116770.0,116760.0,1.63170943]
[1753160562680,0.17708,116770.0,116760.0,1.73923411]
[1753160562877,0.16138,116770.0,116760.0,1.73923411]
[1753160563283,0.0943,116770.0,116760.0,2.07923411]
[1753160563480,0.0871,116770.0,116760.0,2.07923411]
[1753160563973,0.0871,116770.0,116760.0,2.08033411]
[1753160564173,0.06434,116770.0,116760.0,2.25162211]
[1753160564377,0.03294,116770.0,116760.0,2.25147989]
[1753160564575,0.03294,116770.0,116760.0,1.97266721]
[1753160564772,0.01724,116770.0,116760.0,1.97266721]
[1753160564974,0.01724,116770.0,116760.0,2.11486721]
[1753160565179,0.00154,116770.0,116760.0,1.97266721]
[1753160565374,0.11451,116790.0,116780.0,0.171172]
[1753160565580,0.15451,116790.0,116780.0,1.55641414]
[1753160566378,0.6864674,116790.0,116780.0,1.19561414]
[1753160566583,0.3466574,116790.0,116780.0,0.171172]
[1753160566883,0.3466574,116790.0,116780.0,0.854652]
[1753160567079,0.1755,116790.0,116780.0,1.55581414]
[1753160567388,0.3466574,116790.0,116780.0,1.55581414]
[1753160567586,0.3466574,116790.0,116780.0,0.854652]
[1753160567785,0.3466574,116790.0,116780.0,1.19501414]
[1753160568085,0.3466574,116790.0,116780.0,0.854652]
[1753160568385,0.3466574,116790.0,116780.0,0.855532]
[1753160568687,0.3466574,116790.0,116780.0,0.856532]
[1753160568886,0.3466574,116790.0,116780.0,0.857532]
[1753160569581,0.4359674,116790.0,116780.0,0.857532]
[1753160569787,0.4359674,116790.0,116780.0,1.19889414]
[1753160569982,0.4359674,116790.0,116780.0,0.857532]
[1753160570184,0.15451,116790.0,116780.0,1.19789414]
[1753160570789,0.3256674,116790.0,116780.0,1.55869414]
[1753160570988,0.3256674,116790.0,116780.0,1.19789414]
[1753160570989,0.3564474,116790.0,116780.0,1.19789414]
[1753160571183,0.4359674,116790.0,116780.0,1.19789414]
[1753160571488,0.7967674,116790.0,116780.0,1.19689414]
[1753160571787,0.7967674,116790.0,116780.0,0.856532]
[1753160573178,0.4359674,116790.0,116780.0,1.217332]
[1753160573577,0.4359674,116790.0,116780.0,0.856532]
[1753160573782,0.4359674,116790.0,116780.0,1.19689414]
[1753160574588,0.7967674,116790.0,116780.0,1.19689414]
[1753160574785,0.4359674,116790.0,116780.0,0.856532]
[1753160574992,0.7967674,116790.0,116780.0,0.856532]
[1753160575997,0.7967674,116790.0,116780.0,0.68172]
[1753160576593,1.13712954,116790.0,116780.0,0.68096]
[1753160577094,0.7967674,116790.0,116780.0,0.68096]
[1753160577486,0.7967674,116790.0,116780.0,0.7495093]
[1753160577686,0.4359674,116790.0,116780.0,0.9217814]
[1753160578299,0.4359674,116790.0,116780.0,0.9207814]
[1753160578595,0.3564474,116790.0,116780.0,1.26167354]
[1753160578787,0.3564474,116790.0,116780.0,1.26183354]
[1753160579596,0.3256674,116790.0,116780.0,1.26183354]
[1753160580003,1.13712954,116790.0,116780.0,0.001]
[1753160580191,1.13712954,116790.0,116780.0,0.67844]
[1753160580494,1.04781954,116790.0,116780.0,0.67744]
[1753160581199,0.2856821,116780.0,116770.0,0.27446025]
[1753160581392,0.4166721,116780.0,116770.0,1.29202239]
[1753160581600,0.11,116780.0,116770.0,1.65351239]
[1753160581895,0.2811721,116780.0,116770.0,1.29271239]
[1753160582095,0.3956821,116780.0,116770.0,1.29271239]
[1753160582302,0.3956821,116780.0,116770.0,1.29371239]
[1753160582491,0.22451,116780.0,116770.0,1.29471239]
[1753160582691,0.22451,116780.0,116770.0,1.65551239]
[1753160582692,0.11,116780.0,116770.0,1.65551239]
[1753160582894,0.4166721,116780.0,116770.0,0.69624195]
[1753160583088,1.11783424,116780.0,116770.0,0.69624195]
[1753160583295,0.7774721,116780.0,116770.0,0.86742865]
[1753160583495,0.7774721,116780.0,116770.0,0.19086865]
[1753160583791,0.7774721,116780.0,116770.0,0.86726865]
[1753160583997,0.4166721,116780.0,116770.0,1.56843079]
[1753160584188,0.4166721,116780.0,116770.0,1.20763079]
[1753160584804,0.4166721,116780.0,116770.0,1.27519839]
[1753160585099,0.4166721,116780.0,116770.0,1.63599839]
[1753160585302,0.4166721,116780.0,116770.0,1.29563625]
[1753160585490,0.4166721,116780.0,116770.0,1.63599839]
[1753160585804,0.4166721,116780.0,116770.0,1.27588839]
[1753160586101,0.4166721,116780.0,116770.0,1.63668839]
[1753160586102,0.22451,116780.0,116770.0,1.63668839]
[1753160586300,0.3956821,116780.0,116770.0,1.27588839]
[1753160586494,0.3956821,116780.0,116770.0,1.63668839]
[1753160587001,0.4166721,116780.0,116770.0,1.63652839]
[1753160587296,0.4166721,116780.0,116770.0,1.29616625]
[1753160587497,0.2455,116780.0,116770.0,1.63668839]
[1753160587703,0.22451,116780.0,116770.0,1.63668839]
[1753160588296,0.22451,116780.0,116770.0,1.99668839]
[1753160588497,0.11,116780.0,116770.0,1.99668839]
[1753160588805,0.11,116780.0,116770.0,1.63668839]
[1753160589299,0.11,116780.0,116770.0,2.02811378]
[1753160589698,0.11,116780.0,116770.0,1.69811378]
[1753160590201,0.11,116780.0,116770.0,2.02811378]
[1753160591403,0.22451,116780.0,116770.0,1.69811378]
[1753160592494,0.22451,116780.0,116770.0,1.29632625]
[1753160592697,0.22451,116780.0,116770.0,1.35775164]
[1753160592889,0.4009721,116780.0,116770.0,1.69811378]
[1753160593798,0.4107621,116780.0,116770.0,1.69811378]
[1753160594004,0.4107621,116780.0,116770.0,1.63652839]
[1753160594203,0.4107621,116780.0,116770.0,1.69795378]
[1753160595304,0.23959,116780.0,116770.0,1.69795378]
[1753160595905,0.23959,116780.0,116770.0,1.35759164]
[1753160596206,0.2298,116780.0,116770.0,1.35759164]
[1753160596405,0.2298,116780.0,116770.0,1.69795378]
[1753160596607,0.20881,116780.0,116770.0,1.69795378]
[1753160596906,0.19311,116780.0,116770.0,1.69795378]
[1753160597607,0.17741,116780.0,116770.0,1.69795378]
[1753160598310,0.17741,116780.0,116770.0,1.63652839]
[1753160598601,0.17741,116780.0,116770.0,1.71334581]
[1753160598809,0.16171,116780.0,116770.0,1.71334581]
[1753160599215,0.16171,116780.0,116770.0,2.03334581]
[1753160599401,0.16171,116780.0,116770.0,1.71334581]
[1753160599602,0.14601,116780.0,116770.0,1.71334581]
[1753160600811,0.13031,116780.0,116770.0,1.71334581]
[1753160601006,0.13031,116780.0,116770.0,2.08334581]
[1753160601206,0.0158,116780.0,116770.0,2.08334581]
[1753160601606,0.13339,116800.0,116790.0,0.1711574]
[1753160601808,0.25339,116800.0,116790.0,1.54847954]
[1753160602012,0.23408,116800.0,116790.0,1.61005958]
[1753160602207,0.23408,116800.0,116790.0,1.99005958]
[1753160602413,0.23408,116800.0,116790.0,1.61005958]
[1753160603810,0.23608,116800.0,116790.0,1.61005958]
[1753160604009,0.23608,116800.0,116790.0,1.61858036]
[1753160604404,0.8748528,116800.0,116790.0,0.00852078]
[1753160604606,0.22091,116780.0,116770.0,0.08624955]
[1753160604806,0.22091,116780.0,116770.0,1.08347635]
[1753160604807,0.34091,116780.0,116770.0,1.08347635]
[1753160605111,0.8728821,116780.0,116770.0,0.91228955]
[1753160605308,1.21324424,116780.0,116770.0,0.91228955]
[1753160605609,0.8728821,116780.0,116770.0,0.76228955]
[1753160605810,0.8728821,116780.0,116770.0,0.08624955]
[1753160606010,0.8728821,116780.0,116770.0,0.76224955]
[1753160606403,0.8728821,116780.0,116770.0,0.677]
[1753160606612,1.41232124,116780.0,116770.0,0.67696]
[1753160606813,1.40367347,116780.0,116770.0,0.67696]
[1753160607509,1.40367347,116780.0,116770.0,0.001]
[1753160607710,1.40367347,116780.0,116770.0,0.002]
[1753160608005,1.40367347,116780.0,116760.0,0.01933367]
[1753160608006,0.3920968,116770.0,116760.0,0.69529367]
[1753160608210,0.1712161,116750.0,116740.0,0.06158004]
[1753160608512,0.8629261,116750.0,116740.0,1.03592]
[1753160609016,0.8629261,116750.0,116740.0,0.67592]
[1753160609207,0.1712454,116730.0,116720.0,1.60642004]
[1753160609406,0.4146354,116730.0,116720.0,2.58072]
[1753160609608,0.4146354,116730.0,116720.0,2.7607298]
[1753160609809,0.4146354,116730.0,116720.0,1.5679401]
[1753160610310,0.4146354,116730.0,116720.0,1.5759401]
[1753160610609,0.7754354,116730.0,116720.0,1.2151401]
[1753160610803,0.7754354,116730.0,116720.0,1.03588]
[1753160611006,0.7764354,116730.0,116720.0,0.9371401]
[1753160612113,0.5031554,116730.0,116720.0,0.9371401]
[1753160612708,0.33191,116730.0,116720.0,0.9371401]
[1753160613014,0.33191,116730.0,116720.0,1.27750224]
[1753160613213,0.24439,116730.0,116720.0,1.27750224]
[1753160613413,0.4156354,116730.0,116720.0,1.27750224]
[1753160613613,0.24439,116730.0,116720.0,1.63830224]
[1753160614108,0.2780479,116750.0,116740.0,0.1712308]
[1753160614309,0.23683,116750.0,116740.0,1.18739294]
[1753160614708,0.5221261,116750.0,116740.0,1.18739294]
[1753160614911,0.5221261,116750.0,116740.0,0.8470308]
[1753160615108,0.8829261,116750.0,116740.0,0.6758]
[1753160615314,0.1712454,116730.0,116720.0,0.32395312]
[1753160615512,0.4246354,116730.0,116720.0,1.60055312]
[1753160615712,0.4246354,116730.0,116720.0,0.66787522]
[1753160615913,0.4246354,116730.0,116720.0,1.34367522]
[1753160616506,0.4246354,116730.0,116720.0,0.6008]
[1753160616706,0.3046501,116720.0,116710.0,0.01708769]
[1753160616913,0.4246501,116720.0,116710.0,1.04284769]
[1753160617518,0.4246501,116720.0,116710.0,0.36708769]
[1753160618111,0.4246501,116720.0,116710.0,1.04280769]
[1753160618619,0.4246501,116720.0,116710.0,0.69280769]
[1753160618913,0.4246501,116720.0,116710.0,0.01708769]
[1753160619112,0.4246501,116720.0,116710.0,0.69276769]
[1753160619313,0.1712748,116710.0,116700.0,0.42827086]
[1753160619512,0.3046795,116700.0,116690.0,0.5321041]
[1753160619711,0.4146795,116700.0,116690.0,1.5177441]
[1753160620017,0.4146795,116700.0,116690.0,1.5177841]
[1753160620220,0.4146795,116700.0,116690.0,1.34648]
[1753160620413,0.7754795,116700.0,116690.0,0.75568]
[1753160621117,0.7754795,116700.0,116690.0,0.75668]
[1753160621320,0.7754795,116700.0,116690.0,0.9279841]
[1753160622117,0.4146795,116700.0,116690.0,0.9279841]
[1753160622521,0.4146795,116700.0,116690.0,0.93540389]
[1753160622816,0.4146795,116700.0,116690.0,1.27576603]
[1753160623214,0.7754795,116700.0,116690.0,1.26734624]
[1753160623421,0.7754795,116700.0,116690.0,0.9269841]
[1753160624019,0.4146795,116700.0,116690.0,1.2877841]
[1753160624217,0.22408,116700.0,116690.0,1.62914624]
[1753160624417,0.3953694,116700.0,116690.0,1.62914624]
[1753160624721,0.4153094,116700.0,116690.0,1.2887841]
[1753160625619,0.7761094,116700.0,116690.0,0.7564]
[1753160625925,0.7761094,116700.0,116690.0,0.6764]
[1753160626426,0.7761094,116700.0,116690.0,0.8477041]
[1753160626924,0.7761094,116700.0,116690.0,0.6754]
[1753160627125,0.7781094,116700.0,116690.0,0.6754]
[1753160627825,0.7781094,116700.0,116690.0,0.6764]
[1753160628627,0.7761094,116700.0,116690.0,0.6764]
[1753160629226,0.7761094,116700.0,116690.0,0.8467041]
[1753160629626,0.8602594,116700.0,116690.0,0.8467041]
[1753160630025,0.4994594,116700.0,116690.0,0.8467041]
[1753160631033,0.4994594,116700.0,116690.0,1.18706624]
[1753160631226,0.4258094,116700.0,116690.0,1.54786624]
[1753160631936,0.22408,116700.0,116690.0,0.87246624]
[1753160632141,0.11,116700.0,116690.0,1.89762624]
[1753160634434,0.4140209,116720.0,116710.0,0.1712748]
[1753160634435,0.1912059,116720.0,116710.0,0.1712748]
[1753160634634,0.4345559,116720.0,116710.0,1.54743694]
[1753160634938,0.26329,116720.0,116710.0,1.54743694]
[1753160635128,0.26329,116720.0,116710.0,1.2070748]
[1753160635332,0.4345501,116720.0,116710.0,1.54743694]
[1753160635631,0.133,116720.0,116710.0,1.54743694]
[1753160635831,0.135,116720.0,116710.0,2.27823694]
[1753160636538,0.135,116720.0,116710.0,1.90823694]
[1753160636935,0.133,116720.0,116710.0,2.01023694]
[1753160637245,0.133,116720.0,116710.0,2.25023694]
[1753160638237,0.13,116720.0,116710.0,2.25423694]
[1753160638634,0.3012601,116720.0,116710.0,2.25223694]
[1753160638838,0.13,116720.0,116710.0,2.25523694]
[1753160639044,0.13,116720.0,116710.0,2.25534748]
[1753160640442,0.11335,116740.0,116730.0,0.1712454]
[1753160640642,0.08909419,116740.0,116730.0,1.92511303]
[1753160640948,0.08909419,116740.0,116730.0,2.25511303]
[1753160641247,0.08909385,116740.0,116730.0,2.25511303]
[1753160641445,0.08909334,116740.0,116730.0,1.91475089]
[1753160641634,0.20244334,116740.0,116730.0,2.25511303]
[1753160641839,0.18335,116740.0,116730.0,2.25611303]
[1753160642242,0.18335,116740.0,116730.0,2.25711303]
[1753160642648,0.07,116740.0,116730.0,2.25711303]
[1753160643243,0.12994,116760.0,116750.0,0.1712161]
[1753160643244,0.13329,116760.0,116750.0,0.1712161]
[1753160643549,0.22335,116760.0,116750.0,1.90741824]
[1753160644343,0.11,116760.0,116750.0,1.90741824]
[1753160644551,0.11,116760.0,116750.0,2.27741824]
[1753160644750,0.11335,116770.0,116760.0,0.1712014]
[1753160644945,0.09,116770.0,116760.0,0.87236354]
[1753160645143,0.09,116770.0,116760.0,1.20987041]
[1753160645342,0.09,116770.0,116760.0,1.13115841]
[1753160645743,0.09,116770.0,116760.0,1.32067041]
[1753160645945,0.09,116770.0,116760.0,1.56387041]
[1753160646150,0.09,116770.0,116760.0,1.93387041]
[1753160646750,0.09,116770.0,116760.0,1.93587041]
[1753160647349,0.22329,116770.0,116760.0,1.93587041]
[1753160647644,0.22329,116770.0,116760.0,2.0058433]
[1753160647645,0.23379,116770.0,116760.0,2.0058433]
[1753160647844,0.22329,116770.0,116760.0,2.0078433]
[1753160648046,0.11335,116770.0,116760.0,2.0076433]
[1753160648251,0.13329,116780.0,116770.0,0.1711867]
[1753160648446,0.18329,116780.0,116770.0,0.87234884]
[1753160649046,0.16335,116780.0,116770.0,0.87234884]
[1753160649455,0.334522,116780.0,116770.0,0.87334884]
[1753160650349,0.16335,116780.0,116770.0,0.87334884]
[1753160650654,0.16335,116780.0,116770.0,0.93434884]
[1753160650951,0.05,116780.0,116770.0,0.93434884]
[1753160651452,0.16335,116780.0,116770.0,0.93434884]
[1753160652047,0.05,116780.0,116770.0,0.93434884]
[1753160652249,0.05,116780.0,116770.0,0.98434884]
[1753160652452,0.1896575,116810.0,116800.0,0.1711427]
[1753160652655,0.3852292,116810.0,116800.0,1.54566484]
[1753160653047,0.25379,116810.0,116800.0,1.54566484]